[Event "XXXII Belgrade Trophy 2018"]
[Site "Belgrade"]
[Date "2018.11.28"]
[Round "5"]
[White "Atakisi, Umut"]
[Black "Sahin, Ozgun"]
[Result "1-0"]
[ECO "A41"]
[WhiteElo "2398"]
[BlackElo "2208"]
[Annotator "ChessBase"]
[PlyCount "85"]
[EventDate "2018.11.24"]
[EventType "swiss"]
[EventCountry "SRB"]
[SourceTitle "playchess.com"]
[Source "ChessBase"]
[SourceQuality "1"]
[TimeControl "40/5400+30:900+30"]

1. d4 {[%emt 0:08:18]} d6 {[%emt 0:00:56]} 2. g3 {[%emt 0:02:50]} Nd7 {[%emt 0:01:13]} 3. Bg2 {[%emt 0:00:15]} g6 {[%emt 0:00:26]} 4. Nf3 {[%emt 0:00:06]} Bg7 {[%emt 0:00:05]} 5. O-O {[%emt 0:00:09]} e5 {[%emt 0:02:15]} 6. dxe5 {[%emt 0:00:05]} dxe5 {[%emt 0:01:47]} 7. Nc3 {[%emt 0:00:36]} Ne7 {[%emt 0:01:33]} 8. e4 {[%emt 0:08:58]} O-O {[%emt 0:00:38]} 9. b3 {[%emt 0:00:08]} b6 {[%emt 0:15:09]} 10. a4 {[%emt 0:05:16]} a5 {[%emt 0:04:47]} 11. Ba3 {[%emt 0:00:33]} Nc5 {[%emt 0:02:21]} 12. Bxc5 {[%emt 0:04:36]} bxc5 {[%emt 0:00:03]} 13. Qxd8 {[%emt 0:00:53]} Rxd8 {[%emt 0:00:14]} 14. Rfd1 {[%emt 0:00:06]} Bg4 {[%emt 0:13:01]} 15. Nb5 {[%emt 0:26:48]} f5 {[%emt 0:02:45]} 16. Nxc7 {[%emt 0:06:23]} Rxd1+ {[%emt 0:16:29]} 17. Rxd1 {[%emt 0:00:08]} Rc8 {[%emt 0:00:02]} 18. Nd5 {[%emt 0:00:41]} Nxd5 {[%emt 0:02:39]} 19. Rxd5 {[%emt 0:00:08]} c4 {[%emt 0:02:07]} 20. h3 {[%emt 0:05:45]} cxb3 {[%emt 0:00:26]} 21. cxb3 {[%emt 0:00:06]} fxe4 {[%emt 0:08:37]} 22. hxg4 {[%emt 0:01:34]} exf3 {[%emt 0:00:05]} 23. Bxf3 {[%emt 0:00:09]} Rc1+ {[%emt 0:05:02]} 24. Kg2 {[%emt 0:00:14]} Re1 {[%emt 0:00:49]} 25. Rd8+ {[%emt 0:02:29]} Bf8 {[%emt 0:02:26]} 26. Bd5+ {[%emt 0:00:14]} Kg7 {[%emt 0:00:01]} 27. g5 {[%emt 0:01:16]} Rd1 {[%emt 0:03:08]} 28. Kf3 {[%emt 0:02:05]} Rd4 {[%emt 0:02:27]} 29. Ke2 {[%emt 0:02:29]} Rg4 {[%emt 0:08:44]} 30. Rd7+ {[%emt 0:00:59]} Kh8 {[%emt 0:00:03]} 31. Ra7 {[%emt 0:01:14]} Rxg5 {[%emt 0:00:05]} 32. Rxa5 {[%emt 0:00:13]} Rg4 {[%emt 0:00:08]} 33. Rb5 {[%emt 0:01:27]} Rb4 {[%emt 0:00:10]} 34. Rxb4 {[%emt 0:00:45]} Bxb4 {[%emt 0:00:02]} 35. Kd3 {[%emt 0:00:36]} Kg7 {[%emt 0:00:25]} 36. Kc4 {[%emt 0:02:12]} Be1 {[%emt 0:00:07]} 37. b4 {[%emt 0:02:03]} Bxf2 {[%emt 0:00:05]} 38. a5 {[%emt 0:00:29]} Kf6 {[%emt 0:00:40]} 39. Kb5 {[%emt 0:01:49]} e4 {[%emt 0:03:57]} 40. Kc6 {[%emt 0:00:08]} Bxg3 {[%emt 0:01:00]} 41. b5 {[%emt 0:15:12]} e3 {[%emt 0:15:46]} 42. Bf3 {[%emt 0:00:16]} h5 {[%emt 0:01:16]} 43. a6 {[%emt 0:00:17]} 1-0

[Event "XXXII Belgrade Trophy 2018"]
[Site "Belgrade"]
[Date "2018.11.28"]
[Round "5"]
[White "Tsaknakis, Zisis"]
[Black "Kadric, Denis"]
[Result "0-1"]
[ECO "B06"]
[WhiteElo "2229"]
[BlackElo "2554"]
[Annotator "RC"]
[PlyCount "70"]
[EventDate "2018.11.24"]
[EventType "swiss"]
[EventCountry "SRB"]
[SourceTitle "playchess.com"]
[Source "ChessBase"]
[SourceQuality "1"]
[TimeControl "40/5400+30:900+30"]

1. e4 {[%emt 0:00:00]} g6 {[%emt 0:02:00]} 2. d4 {[%emt 0:00:00]} Bg7 {[%emt 0:00:01]} 3. Nf3 {[%emt 0:00:00]} d6 {[%emt 0:00:03]} 4. Bc4 {[%emt 0:00:19]} Nf6 {[%emt 0:00:04]} 5. Qe2 {[%emt 0:00:18]} Nc6 {[%emt 0:00:22]} 6. h3 {[%emt 0:01:08]} O-O {[%emt 0:00:04]} 7. O-O {[%emt 0:00:15]} Nd7 {[%emt 0:00:01]} 8. c3 {[%emt 0:03:08]} e5 {[%emt 0:00:04]} 9. Bg5 {[%emt 0:07:22]} Qe8 {[%emt 0:00:05]} 10. Qe3 {[%emt 0:00:35]} Nb6 {[%emt 0:05:04]} 11. Bb3 {[%emt 0:07:46]} Na5 {[%emt 0:01:30]} 12. Nbd2 {[%emt 0:04:04]} Nxb3 {[%emt 0:00:33]} 13. axb3 {[%emt 0:00:48]} f5 {[%emt 0:00:29]} 14. dxe5 {[%emt 0:01:09]} dxe5 {[%emt 0:00:02]} 15. exf5 {[%emt 0:03:24]} gxf5 {[%emt 0:00:01]} 16. Rfe1 {[%emt 0:15:57]} e4 {[%emt 0:05:18]} 17. Ra5 {[%emt 0:05:38]} c6 {[%emt 0:08:28]} 18. c4 {[%emt 0:06:19]} Nd7 {[%emt 0:18:16]} 19. g4 {[%emt 0:14:24]} c5 {[%emt 0:13:44]} 20. gxf5 {[%emt 0:03:31]} b6 {[%emt 0:01:17]} 21. Raa1 {[%emt 0:02:04]} Bb7 {[%emt 0:00:02]} 22. Qf4 {[%emt 0:01:35]} Qh5 {[%emt 0:02:25]} 23. Nh4 {[%emt 0:09:10]} h6 {[%emt 0:07:17]} 24. Be7 {[%emt 0:00:53]} Rf7 {[%emt 0:00:06]} 25. Bd6 {[%emt 0:12:00]} Bxb2 {[%emt 0:00:31]} 26. Ra2 {[%emt 0:00:32]} Rg7+ {[%emt 0:08:02]} 27. Kh2 {[%emt 0:00:32]} Bf6 {[%emt 0:03:21]} 28. Ng6 {[%emt 0:00:05]} Bg5 {[%emt 0:01:13]} 29. Qg3 {[%emt 0:00:46]} Nf6 {[%emt 0:02:42]} 30. Nf1 {[%emt 0:00:30]} Bc8 {[%emt 0:02:22]} 31. Ne7+ {[%emt 0:00:46]} Kh7 {[%emt 0:00:02]} 32. Nxc8 {[%emt 0:00:30]} Rxc8 {[%emt 0:01:01]} 33. Kh1 {[%emt 0:00:27]} Rcg8 {[%emt 0:00:39]} 34. Qh2 {[%emt 0:00:34]} Bf4 {[%emt 0:01:33]} 35. Bxf4 {[%emt 0:00:29]} Qf3+ {[%emt 0:00:03]} 0-1

[Event "XXXII Belgrade Trophy 2018"]
[Site "Belgrade"]
[Date "2018.11.28"]
[Round "5"]
[White "Ivanovic, Marko"]
[Black "Galiot, Goran"]
[Result "0-1"]
[ECO "B07"]
[WhiteElo "2202"]
[BlackElo "2305"]
[Annotator "RC"]
[PlyCount "73"]
[EventDate "2018.11.24"]
[EventType "swiss"]
[EventCountry "SRB"]
[SourceTitle "playchess.com"]
[Source "ChessBase"]
[SourceQuality "1"]
[TimeControl "40/5400+30:900+30"]

1. d4 Nf6 2. Bf4 g6 3. Nc3 Bg7 4. e4 O-O 5. Qd2 d6 6. O-O-O Nc6 7. f3 Nh5 8. Bh6 e5 9. Bxg7 Nxg7 10. d5 Ne7 11. h4 {[%emt 0:00:00]} f5 {[%emt 0:00:30]} 12. Nh3 {[%emt 0:00:00]} f4 13. Bd3 Bxh3 14. Rxh3 Nh5 15. Ne2 Kh8 16. Kb1 Ng8 17. c4 Ngf6 18. c5 dxc5 19. Qc3 Qe7 20. Rc1 b6 21. Bb5 a5 22. Rc2 Rf7 23. Nc1 Qd6 24. Nd3 Re7 25. b3 Rg8 26. Nb2 Ne8 27. Rh1 Qf6 28. Bxe8 Rgxe8 29. Nc4 Ng7 30. d6 cxd6 31. Nxb6 Rb7 32. Qxa5 Ne6 33. Nd5 {[%emt 0:00:00]} Qf7 34. Qc3 Nd4 35. Rb2 Reb8 36. Rc2 h5 {gxh5 Rc1 h4 Rh1 Qxh5 gxh3} 37. Rh2 {Rxh2 Qxh2 b4} 0-1

[Event "XXXII Belgrade Trophy 2018"]
[Site "Belgrade"]
[Date "2018.11.28"]
[Round "5"]
[White "Brankovic, Vladislav"]
[Black "Chelushkina, Irina"]
[Result "1-0"]
[ECO "B22"]
[WhiteElo "2108"]
[BlackElo "2286"]
[Annotator "RC"]
[PlyCount "49"]
[EventDate "2018.11.24"]
[EventType "swiss"]
[EventCountry "SRB"]
[SourceTitle "playchess.com"]
[Source "ChessBase"]
[SourceQuality "1"]
[TimeControl "40/5400+30:900+30"]

1. e4 {[%emt 1:30:30]} c5 {[%emt 1:30:30]} 2. Nf3 {[%emt 0:00:30]} e6 {[%emt 0:00:30]} 3. c3 {[%emt 0:00:30]} Nf6 {[%emt 0:00:30]} 4. e5 {[%emt 0:00:30]} Nd5 {[%emt 0:00:30]} 5. d4 {[%emt 0:00:30]} cxd4 {[%emt 0:00:30]} 6. cxd4 {[%emt 0:00:30]} Nc6 {[%emt 0:00:30]} 7. Nc3 {[%emt 0:00:30]} d6 {[%emt 0:00:30]} 8. Bb5 {[%emt 0:00:30]} Nxc3 {[%emt 0:00:30]} 9. bxc3 {[%emt 0:00:30]} Bd7 {[%emt 0:00:30]} 10. exd6 {[%emt 0:00:30]} Bxd6 {[%emt 0:00:30]} 11. O-O {[%emt 0:00:30]} O-O {[%emt 0:00:30]} 12. Qe2 {[%emt 0:00:30]} Qc7 {[%emt 0:00:30]} 13. a4 {[%emt 0:00:30]} Rfe8 {[%emt 0:00:30]} 14. Ba3 {[%emt 0:00:30]} Bxa3 {[%emt 0:00:30]} 15. Rxa3 {[%emt 0:00:30]} e5 {[%emt 0:00:30]} 16. d5 {[%emt 0:00:30]} Na5 {[%emt 0:00:30]} 17. c4 {[%emt 0:00:30]} Bxb5 {[%emt 0:00:30]} 18. cxb5 {[%emt 0:00:30]} Rad8 {[%emt 0:00:30]} 19. Qe4 {[%emt 0:00:30]} Qd7 {[%emt 0:00:30]} 20. Ng5 {[%emt 0:00:30]} f5 {[%emt 0:00:30]} 21. Qh4 {[%emt 0:00:30]} h6 {[%emt 0:00:30]} 22. Ne6 {[%emt 0:00:30]} Qd6 {[%emt 0:00:30]} 23. Rg3 {[%emt 0:00:30]} Rd7 {[%emt 0:00:30]} 24. Qxh6 {[%emt 0:00:30] Ree7Qg6 [%clk 0:00:00]} Qxd5 {[%emt 0:00:30]} 25. Nxg7 {[%emt 0:00:30]} 1-0

[Event "XXXII Belgrade Trophy 2018"]
[Site "Belgrade"]
[Date "2018.11.30"]
[Round "7"]
[White "Dimitrijeski, Boris"]
[Black "Gunduz, Umut Erdem"]
[Result "0-1"]
[ECO "A70"]
[WhiteElo "2232"]
[BlackElo "2205"]
[Annotator "ChessBase"]
[PlyCount "84"]
[EventDate "2018.11.24"]
[EventType "swiss"]
[EventCountry "SRB"]
[SourceTitle "playchess.com"]
[Source "ChessBase"]
[SourceQuality "1"]
[TimeControl "40/5400+30:900+30"]

1. d4 {[%emt 0:00:00]} Nf6 {[%emt 0:00:00]} 2. c4 {[%emt 0:00:00]} c5 {[%emt 0:00:00]} 3. d5 {[%emt 0:00:00]} e6 {[%emt 0:00:00]} 4. Nc3 {[%emt 0:00:00]} exd5 {[%emt 0:00:00]} 5. cxd5 {[%emt 0:00:05]} d6 {[%emt 0:00:00]} 6. Nf3 {[%emt 0:00:09]} g6 {[%emt 0:00:06]} 7. Qa4+ {[%emt 0:00:25]} Bd7 {[%emt 0:03:00]} 8. Qb3 {[%emt 0:00:06]} Qc7 {[%emt 0:00:05]} 9. e4 {[%emt 0:07:34]} Bg7 {[%emt 0:01:32]} 10. Bc4 {[%emt 0:00:06]} O-O {[%emt 0:01:33]} 11. O-O {[%emt 0:00:33]} Re8 {[%emt 0:03:38]} 12. e5 {[%emt 0:04:57]} Ng4 {[%emt 0:05:48]} 13. exd6 {[%emt 0:08:26]} Qc8 {[%emt 0:04:02]} 14. Bf4 {[%emt 0:01:24]} a6 {[%emt 0:02:57]} 15. a4 {[%emt 0:00:57]} Bf5 {[%emt 0:06:16]} 16. Rfe1 {[%emt 0:11:09]} Nf6 {[%emt 0:07:02]} 17. h3 {[%emt 0:05:06]} h6 {[%emt 0:12:55]} 18. Re7 {[%emt 0:13:44]} Nbd7 {[%emt 0:04:40]} 19. Nh4 {[%emt 0:01:47]} Bf8 {[%emt 0:05:53]} 20. Nxf5 {[%emt 0:01:37]} gxf5 {[%emt 0:00:02]} 21. Rae1 {[%emt 0:04:43]} Qd8 {[%emt 0:06:17]} 22. Rxe8 {[%emt 0:07:43]} Nxe8 {[%emt 0:00:22]} 23. Nd1 {[%emt 0:03:18]} Ndf6 {[%emt 0:06:37]} 24. Qg3+ {[%emt 0:06:31]} Kh8 {[%emt 0:01:52]} 25. Qh4 {[%emt 0:00:21]} Ne4 {[%emt 0:02:05]} 26. Qh5 {[%emt 0:00:28]} N8xd6 {[%emt 0:05:28]} 27. Bxh6 {[%emt 0:02:19]} Nf6 {[%emt 0:00:24]} 28. Qh4 {[%emt 0:00:16]} Nh7 {[%emt 0:00:07]} 29. Qxd8 {[%emt 0:01:57]} Rxd8 {[%emt 0:00:01]} 30. Bxf8 {[%emt 0:00:09]} Nxf8 {[%emt 0:00:36]} 31. Bb3 {[%emt 0:05:28]} b5 {[%emt 0:00:25]} 32. axb5 {[%emt 0:00:06]} axb5 {[%emt 0:00:04]} 33. Ne3 {[%emt 0:03:20]} c4 {[%emt 0:03:01]} 34. Bc2 {[%emt 0:00:10]} f4 {[%emt 0:00:04]} 35. Ng4 {[%emt 0:03:59]} Nd7 {[%emt 0:01:25]} 36. Ra1 {[%emt 0:01:56]} Kg7 {[%emt 0:04:37]} 37. Ra6 {[%emt 0:04:26]} Nc5 {[%emt 0:00:08]} 38. Rc6 {[%emt 0:00:21]} Nd3 {[%emt 0:00:34]} 39. Bxd3 {[%emt 0:02:28]} cxd3 {[%emt 0:00:01]} 40. Rc1 {[%emt 0:01:18]} Nc4 {[%emt 0:00:27]} 41. f3 {[%emt 0:06:30]} Rxd5 {[%emt 0:02:04]} 42. Nf2 {[%emt 0:00:48]} d2 {[%emt 0:00:11]} 0-1

[Event "XXXII Belgrade Trophy 2018"]
[Site "Belgrade"]
[Date "2018.11.30"]
[Round "7"]
[White "Uysal, Burak"]
[Black "Olcum, Ahmet"]
[Result "1-0"]
[ECO "B13"]
[WhiteElo "2215"]
[BlackElo "2326"]
[Annotator "ChessBase"]
[PlyCount "185"]
[EventDate "2018.11.24"]
[EventType "swiss"]
[EventCountry "SRB"]
[SourceTitle "playchess.com"]
[Source "ChessBase"]
[SourceQuality "1"]
[TimeControl "40/5400+30:900+30"]

1. e4 {[%emt 0:00:00]} g6 {[%emt 0:05:04]} 2. d4 {[%emt 0:00:00]} Bg7 {[%emt 0:00:02]} 3. Nf3 {[%emt 0:00:01]} c6 {[%emt 0:00:02]} 4. h3 {[%emt 0:00:29]} d6 {[%emt 0:00:04]} 5. Bc4 {[%emt 0:00:31]} d5 {[%emt 0:00:05]} 6. exd5 {[%emt 0:03:47]} cxd5 {[%emt 0:00:02]} 7. Bd3 {[%emt 0:00:07]} Nc6 {[%emt 0:00:08]} 8. c3 {[%emt 0:01:12]} Qc7 {[%emt 0:00:04]} 9. O-O {[%emt 0:00:51]} Nf6 {[%emt 0:00:02]} 10. Re1 {[%emt 0:00:46]} O-O {[%emt 0:00:05]} 11. Nbd2 {[%emt 0:01:01]} Bf5 {[%emt 0:00:21]} 12. Bf1 {[%emt 0:03:53]} Rad8 {[%emt 0:06:33]} 13. Nb3 {[%emt 0:02:47]} Ne4 {[%emt 0:02:04]} 14. Nh4 {[%emt 0:02:45]} Bc8 {[%emt 0:03:13]} 15. Nd2 {[%emt 0:04:42]} f5 {[%emt 0:17:34]} 16. Nhf3 {[%emt 0:01:24]} Kh8 {[%emt 0:02:27]} 17. Bb5 {[%emt 0:08:04]} h6 {[%emt 0:04:19]} 18. Bxc6 {[%emt 0:06:48]} bxc6 {[%emt 0:08:00]} 19. Ne5 {[%emt 0:00:11]} Bxe5 {[%emt 0:00:41]} 20. dxe5 {[%emt 0:00:05]} f4 {[%emt 0:02:39]} 21. Qe2 {[%emt 0:19:27]} g5 {[%emt 0:12:41]} 22. Nxe4 {[%emt 0:05:32]} dxe4 {[%emt 0:00:02]} 23. e6 {[%emt 0:00:18]} e3 {[%emt 0:03:38]} 24. Qf3 {[%emt 0:06:45]} exf2+ {[%emt 0:05:17]} 25. Qxf2 {[%emt 0:00:06]} Rd3 {[%emt 0:03:11]} 26. Be3 {[%emt 0:02:33]} c5 {[%emt 0:12:00]} 27. Bxc5 {[%emt 0:06:44]} f3 {[%emt 0:01:31]} 28. Bd4+ {[%emt 0:01:49]} Kg8 {[%emt 0:00:15]} 29. Re5 {[%emt 0:01:59]} Bb7 {[%emt 0:05:41]} 30. Rf1 {[%emt 0:10:50]} Rf4 {[%emt 0:02:06]} 31. g3 {[%emt 0:01:48]} Re4 {[%emt 0:00:42]} 32. Re1 {[%emt 0:04:00]} Rxe1+ {[%emt 0:00:05]} 33. Qxe1 {[%emt 0:01:10]} f2+ {[%emt 0:00:45]} 34. Qxf2 {[%emt 0:02:23]} Rf3 {[%emt 0:02:09]} 35. Qc2 {[%emt 0:00:49]} Rxg3+ {[%emt 0:00:52]} 36. Kf1 {[%emt 0:00:04]} Ba6+ {[%emt 0:02:40]} 37. Kf2 {[%emt 0:00:32]} Rd3 {[%emt 0:00:50]} 38. Qa4 {[%emt 0:00:42]} Qc8 {[%emt 0:00:33]} 39. Rf5 {[%emt 0:00:40]} Qb8 {[%emt 0:00:10]} 40. Re5 {[%emt 0:01:26]} Qf8+ {[%emt 0:00:36]} 41. Ke1 {[%emt 0:15:21]} Bb7 {[%emt 0:15:42]} 42. Qb5 {[%emt 0:00:43]} Rxh3 {[%emt 0:00:30]} 43. Qxb7 {[%emt 0:00:00]} Qf4 {[%emt 0:00:00]} 44. Qa8+ {[%emt 0:00:00]} Kh7 {[%emt 0:00:00]} 45. Qe4+ {[%emt 0:00:00]} Qxe4+ {[%emt 0:00:00]} 46. Rxe4 {[%emt 0:00:00]} Rh1+ {[%emt 0:00:00]} 47. Kd2 {[%emt 0:00:00]} h5 {[%emt 0:00:00]} 48. c4 {[%emt 0:00:00]} h4 {[%emt 0:00:00]} 49. Bf6 {[%emt 0:00:00]} Kg6 {[%emt 0:00:00]} 50. Bxe7 {[%emt 0:00:00]} h3 {[%emt 0:00:00]} 51. Bd6 {[%emt 0:00:00]} h2 {[%emt 0:00:00]} 52. Bxh2 {[%emt 0:00:00]} Rxh2+ {[%emt 0:00:00]} 53. Re2 {[%emt 0:00:11]} Rh8 {[%emt 0:00:00]} 54. Ke3 {[%emt 0:00:43]} Kf6 {[%emt 0:00:00]} 55. Kf3 {[%emt 0:00:42]} Ke7 {[%emt 0:00:51]} 56. Kg4 {[%emt 0:01:28]} Rh4+ {[%emt 0:00:23]} 57. Kxg5 {[%emt 0:00:03]} Rxc4 {[%emt 0:00:05]} 58. Kf5 {[%emt 0:00:43]} Rc5+ {[%emt 0:00:50]} 59. Kf4 {[%emt 0:00:05]} Rc6 {[%emt 0:00:24]} 60. Kf3 {[%emt 0:00:12]} a5 {[%emt 0:03:36]} 61. b3 {[%emt 0:01:44]} a4 {[%emt 0:02:00]} 62. Re4 {[%emt 0:01:27]} axb3 {[%emt 0:00:26]} 63. axb3 {[%emt 0:00:04]} Rb6 {[%emt 0:01:11]} 64. Re3 {[%emt 0:00:04]} Rb4 {[%emt 0:00:37]} 65. Ke2 {[%emt 0:01:20]} Rd4 {[%emt 0:00:13]} 66. Rd3 {[%emt 0:01:13]} Re4+ {[%emt 0:00:22]} 67. Re3 {[%emt 0:00:22]} Rd4 {[%emt 0:00:06]} 68. Rd3 {[%emt 0:01:41]} Re4+ {[%emt 0:00:04]} 69. Kd2 {[%emt 0:00:03]} Kxe6 {[%emt 0:01:49]} 70. Kc3 {[%emt 0:00:13]} Re5 {[%emt 0:00:57]} 71. Kb4 {[%emt 0:00:25]} Re4+ {[%emt 0:00:33]} 72. Ka5 {[%emt 0:00:10]} Re1 {[%emt 0:00:24]} 73. b4 {[%emt 0:00:43]} Rb1 {[%emt 0:00:10]} 74. b5 {[%emt 0:00:13]} Ra1+ {[%emt 0:00:39]} 75. Kb6 {[%emt 0:00:05]} Ke7 {[%emt 0:00:27]} 76. Kb7 {[%emt 0:00:47]} Rb1 {[%emt 0:00:17]} 77. b6 {[%emt 0:00:53]} Rb2 {[%emt 0:00:02]} 78. Rd1 {[%emt 0:00:44]} Rb3 {[%emt 0:00:17]} 79. Rd5 {[%emt 0:01:37]} Ke6 {[%emt 0:00:23]} 80. Rd4 {[%emt 0:00:08]} Ke5 {[%emt 0:01:37]} 81. Rd8 {[%emt 0:00:48]} Ke6 {[%emt 0:00:36]} 82. Rd2 {[%emt 0:00:48]} Rb1 {[%emt 0:00:03]} 83. Kc7 {[%emt 0:00:53]} Rc1+ {[%emt 0:00:02]} 84. Kb8 {[%emt 0:00:05]} Rb1 {[%emt 0:00:11]} 85. Ka7 {[%emt 0:00:55]} Ra1+ {[%emt 0:00:02]} 86. Kb8 {[%emt 0:00:05]} Rb1 {[%emt 0:00:03]} 87. b7 {[%emt 0:00:22]} Ra1 {[%emt 0:00:02]} 88. Rd4 {[%emt 0:00:20]} Ke5 {[%emt 0:01:06]} 89. Rc4 {[%emt 0:00:36]} Kd5 {[%emt 0:00:55]} 90. Rc2 {[%emt 0:00:14]} Rh1 {[%emt 0:01:30]} 91. Kc7 {[%emt 0:00:11]} Rh7+ {[%emt 0:00:04]} 92. Kb6 {[%emt 0:00:09]} Rh6+ {[%emt 0:00:05]} 93. Ka7 {[%emt 0:00:21]} 1-0

[Event "XXXII Belgrade Trophy 2018"]
[Site "Belgrade"]
[Date "2018.11.30"]
[Round "7"]
[White "Cetkovic, Miodrag"]
[Black "Galiot, Goran"]
[Result "1-0"]
[ECO "B45"]
[WhiteElo "2189"]
[BlackElo "2305"]
[Annotator "RC"]
[PlyCount "63"]
[EventDate "2018.11.24"]
[EventType "swiss"]
[EventCountry "SRB"]
[SourceTitle "playchess.com"]
[Source "ChessBase"]
[SourceQuality "1"]
[TimeControl "40/5400+30:900+30"]

1. e4 {[%emt 0:00:00]} c5 {[%emt 0:03:13]} 2. Nf3 {[%emt 0:00:00]} e6 {[%emt 0:00:21]} 3. d4 {[%emt 0:00:15]} cxd4 {[%emt 0:00:07]} 4. Nxd4 {[%emt 0:00:09]} Nf6 {[%emt 0:00:07]} 5. Nc3 {[%emt 0:00:23]} Nc6 {[%emt 0:00:07]} 6. Be2 {[%emt 0:01:56]} Bb4 {[%emt 0:00:41]} 7. O-O {[%emt 0:01:33]} O-O {[%emt 0:01:02]} 8. Nxc6 {[%emt 0:07:00]} bxc6 {[%emt 0:03:24]} 9. e5 {[%emt 0:00:58]} Nd5 {[%emt 0:01:03]} 10. Nxd5 {[%emt 0:04:27]} cxd5 {[%emt 0:01:52]} 11. Be3 {[%emt 0:10:14]} Qc7 {[%emt 0:06:03]} 12. c3 {[%emt 0:01:46]} Be7 {[%emt 0:04:39]} 13. Bd4 {[%emt 0:00:47]} f6 {[%emt 0:01:49]} 14. f4 {[%emt 0:00:55]} fxe5 {[%emt 0:07:31]} 15. fxe5 {[%emt 0:03:18]} Rxf1+ {[%emt 0:00:34]} 16. Bxf1 {[%emt 0:01:13]} Qc6 {[%emt 0:07:59]} 17. a4 {[%emt 0:07:06]} Ba6 {[%emt 0:05:35]} 18. b4 {[%emt 0:00:46]} Bxf1 {[%emt 0:01:55]} 19. Qxf1 {[%emt 0:00:52]} a6 {[%emt 0:00:15]} 20. Qe2 {[%emt 0:01:10]} Rb8 {[%emt 0:05:04]} 21. h3 {[%emt 0:04:45]} Ra8 {[%emt 0:01:45]} 22. Kh1 {[%emt 0:02:00]} Rb8 {[%emt 0:00:23]} 23. g3 {[%emt 0:00:38]} Ra8 {[%emt 0:00:41]} 24. Kh2 {[%emt 0:00:28]} Rb8 {[%emt 0:00:08]} 25. h4 {[%emt 0:00:27]} Rb7 {[%emt 0:04:39]} 26. Kh3 {[%emt 0:03:27]} Rb8 {[%emt 0:00:13]} 27. g4 {[%emt 0:04:40]} Rb7 {[%emt 0:06:12]} 28. g5 {[%emt 0:01:14]} Rb8 {[%emt 0:00:19]} 29. Kg4 {[%emt 0:00:35]} Bxb4 {[%emt 0:02:08]} 30. Rb1 {[%emt 0:04:47]} Bd6 {[%emt 0:01:00]} 31. exd6 {[%emt 0:00:36]} Qxd6 {[%emt 0:05:18]} 32. Be5 {[%emt 0:03:39]} 1-0

[Event "XXXII Belgrade Trophy 2018"]
[Site "Belgrade"]
[Date "2018.11.30"]
[Round "7"]
[White "Maric, Dragan"]
[Black "Abramovic, Bosko"]
[Result "0-1"]
[ECO "E12"]
[WhiteElo "2174"]
[BlackElo "2372"]
[Annotator "RC"]
[PlyCount "126"]
[EventDate "2018.11.24"]
[EventType "swiss"]
[EventCountry "SRB"]
[SourceTitle "playchess.com"]
[Source "ChessBase"]
[SourceQuality "1"]
[TimeControl "40/5400+30:900+30"]

1. d4 {[%emt 0:00:00]} Nf6 {[%emt 0:01:17]} 2. Nf3 {[%emt 0:00:10]} e6 {[%emt 0:02:44]} 3. c4 {[%emt 0:00:15]} b6 {[%emt 0:00:24]} 4. Nc3 {[%emt 0:00:15]} Bb7 {[%emt 0:00:06]} 5. Bg5 {[%emt 0:00:28]} Be7 {[%emt 0:00:47]} 6. e3 {[%emt 0:00:15]} h6 {[%emt 0:00:32]} 7. Bh4 {[%emt 0:00:27]} Ne4 {[%emt 0:02:17]} 8. Bxe7 {[%emt 0:00:20]} Qxe7 {[%emt 0:00:06]} 9. Bd3 {[%emt 0:00:10]} Nxc3 {[%emt 0:00:28]} 10. bxc3 {[%emt 0:00:09]} d6 {[%emt 0:00:14]} 11. e4 {[%emt 0:00:34]} Nd7 {[%emt 0:00:34]} 12. O-O {[%emt 0:00:17]} e5 {[%emt 0:01:33]} 13. Re1 {[%emt 0:00:26]} O-O {[%emt 0:00:30]} 14. Rb1 {[%emt 0:03:39]} Rfe8 {[%emt 0:02:53]} 15. Nd2 {[%emt 0:01:57]} Nf8 {[%emt 0:05:16]} 16. Nf1 {[%emt 0:03:24]} Ne6 {[%emt 0:04:07]} 17. Bc2 {[%emt 0:00:48]} Qf6 {[%emt 0:00:47]} 18. d5 {[%emt 0:01:22]} Nc5 {[%emt 0:00:41]} 19. Re3 {[%emt 0:01:03]} Bc8 {[%emt 0:00:35]} 20. Rg3 {[%emt 0:02:44]} Bd7 {[%emt 0:01:50]} 21. Ne3 {[%emt 0:00:18]} g6 {[%emt 0:03:40]} 22. Ng4 {[%emt 0:08:36]} Qf4 {[%emt 0:01:18]} 23. Qf3 {[%emt 0:02:42]} Qxf3 {[%emt 0:06:14]} 24. gxf3 {[%emt 0:00:22]} Kg7 {[%emt 0:00:05]} 25. Ne3 {[%emt 0:02:03]} h5 {[%emt 0:01:22]} 26. h4 {[%emt 0:00:17]} Kf6 {[%emt 0:00:30]} 27. Kf1 {[%emt 0:00:39]} a6 {[%emt 0:01:20]} 28. Ke2 {[%emt 0:00:24]} b5 {[%emt 0:00:26]} 29. Kd2 {[%emt 0:00:15]} Reb8 {[%emt 0:00:16]} 30. Rgg1 {[%emt 0:00:51]} Rb7 {[%emt 0:00:45]} 31. Rb2 {[%emt 0:00:47]} Rab8 {[%emt 0:00:12]} 32. Rgb1 {[%emt 0:00:12]} bxc4 {[%emt 0:01:40]} 33. Rxb7 {[%emt 0:00:45]} Rxb7 {[%emt 0:00:04]} 34. Rxb7 {[%emt 0:01:36]} Nxb7 {[%emt 0:01:25]} 35. Nxc4 {[%emt 0:00:06]} g5 {[%emt 0:00:10]} 36. Ke3 {[%emt 0:04:26]} gxh4 {[%emt 0:05:33]} 37. f4 {[%emt 0:00:35]} h3 {[%emt 0:00:10]} 38. fxe5+ {[%emt 0:00:08]} dxe5 {[%emt 0:00:19]} 39. Kf3 {[%emt 0:00:26]} h4 {[%emt 0:00:19]} 40. Ne3 {[%emt 0:00:28]} Nc5 {[%emt 0:03:53]} 41. Nf1 {[%emt 0:16:00]} c6 {[%emt 0:18:15]} 42. c4 {[%emt 0:01:32]} cxd5 {[%emt 0:00:06]} 43. cxd5 {[%emt 0:00:14]} Kg5 {[%emt 0:00:26]} 44. Nh2 {[%emt 0:00:37]} f5 {[%emt 0:02:18]} 45. Ke3 {[%emt 0:02:14]} fxe4 {[%emt 0:04:31]} 46. Bxe4 {[%emt 0:00:18]} Nxe4 {[%emt 0:02:31]} 47. Kxe4 {[%emt 0:00:17]} Kf6 {[%emt 0:00:05]} 48. f4 {[%emt 0:01:02]} Bf5+ {[%emt 0:00:05]} 49. Ke3 {[%emt 0:00:07]} e4 {[%emt 0:00:27]} 50. a3 {[%emt 0:00:45]} Ke7 {[%emt 0:00:18]} 51. Kd4 {[%emt 0:00:10]} Kd6 {[%emt 0:00:11]} 52. Nf1 {[%emt 0:00:26]} Bg6 {[%emt 0:02:15]} 53. Nh2 {[%emt 0:00:08]} e3 {[%emt 0:00:56]} 54. Kxe3 {[%emt 0:00:07]} Kxd5 {[%emt 0:00:04]} 55. Kf3 {[%emt 0:01:10]} Bf5 {[%emt 0:00:14]} 56. Nf1 {[%emt 0:00:40]} Kd4 {[%emt 0:00:13]} 57. Nh2 {[%emt 0:00:33]} Kc3 {[%emt 0:00:39]} 58. Kf2 {[%emt 0:00:24]} Kb2 {[%emt 0:00:39]} 59. a4 {[%emt 0:00:15]} a5 {[%emt 0:00:41]} 60. Nf3 {[%emt 0:00:55]} Be4 {[%emt 0:00:17]} 61. Ke3 {[%emt 0:00:28]} Bc2 {[%emt 0:02:21]} 62. Kf2 {[%emt 0:00:28]} Bxa4 {[%emt 0:00:13]} 63. Nxh4 {[%emt 0:00:08]} Bb3 {[%emt 0:00:15]} 0-1